Cogmind - Beta 10.2 @@@ ROGUE MODE // 2020.12.16 @ 17:29:54 Player: Cracklepappy Result: Destroyed by as-33354 with Assembled Focal Cannon Performance ------------- Evolutions (3) 1500 Regions Visited (13) 2600 Robots Destroyed (245) 1225 Value Destroyed (7548) 7548 Prototype IDs (63) 1260 Alien Tech Used (0) 0 Bonus (2609) 2609 TOTAL SCORE: 16742 Bonus ------- High Alert Combat Kills 1408 Follower Combat Kills 175 Aligned with FarCom 300 Met Imprinter 300 Destroyed Z-Imprinter 1000 Friendly Fire -574 Cogmind --------- Core Integrity 0/700 Matter 48/300 Energy 280/310 System Corruption 0% Temperature Cool (339) Movement Core (2000) Ox39 Location -7/Deep Caves Parts ------- > --- POWER (1) -------- Heavy Deuterium Engine > --- PROPULSION (3) --- (None) > --- UTILITY (6) ------ High-capacity Storage Unit High-capacity Storage Unit High-capacity Storage Unit Advanced Signal Interpreter Advanced Core Analyzer > --- WEAPON (3) ------- Cooled Plasma Cannon Heavy Battle Rifle > --- INVENTORY (28) --- Cold Fusion Reactor Zionite Composite Leg I Combat Antigrav System Combat Antigrav System Improved Cooling System High-capacity Matter Pod (200) Gravity Neutralizing Apparatus Gravity Neutralizing Apparatus Zionite Metafield Generator Advanced Sensor Array Tactical Coordination Suite Improved Armor Integrity Analyzer Advanced Weapon Cycler Zionite Heavy Carapace Advanced Hacking Suite Makeshift System Shield Advanced Component Analysis Suite AS-neutralizer No. 17b Heavy Rocket Launcher Peak State ------------ > --- POWER ------------ Heavy Deuterium Engine > --- PROPULSION ------- Improved Treads Enhanced Flexi-carbon Leg > --- UTILITY ---------- High-capacity Storage Unit High-capacity Storage Unit High-capacity Storage Unit Advanced Signal Interpreter Advanced Core Analyzer Hardened Light Armor Plating > --- WEAPON ----------- Flak Gun 8R-AWN's Boregun 8R-AWN's Boregun > --- INVENTORY -------- Cold Fusion Reactor Zionite Composite Leg I Combat Antigrav System Combat Antigrav System Improved Cooling System High-capacity Matter Pod Gravity Neutralizing Apparatus Gravity Neutralizing Apparatus Zionite Metafield Generator Advanced Sensor Array Tactical Coordination Suite Improved Armor Integrity Analyzer Advanced Weapon Cycler Zionite Heavy Carapace Advanced Hacking Suite Makeshift System Shield Advanced Component Analysis Suite AS-neutralizer No. 17b Cooled Plasma Cannon Heavy Battle Rifle Heavy Rocket Launcher [Rating: 66] Favorites ----------- Power Heavy Deuterium Engine Engine Heavy Deuterium Engine Power Core Reinforced Fission Core Reactor Cold Fusion Reactor Propulsion Light Treads Treads Light Treads Leg Aluminum Leg Wheel Compact Wheel Utility High-capacity Storage Unit Device Advanced Component Analysis Suite Storage High-capacity Storage Unit Processor Advanced Core Analyzer Hackware Hacking Suite Protection Core Shielding Weapon Minigun Energy Gun Small Laser Energy Cannon Cooled Plasma Cannon Ballistic Gun Minigun Launcher Rocket Launcher Special Weapon Mining Laser Slashing Weapon Makeshift Sword Build | -11 -10 -10 -9 -9 -9 -8 -8 -8 -7 -7 -7 -7 -7 ------- Run | Scr Mat Min Mat Min Exi Min Mat Sto Fac Low Low Zio Dee Slots Evolved 6 | . . . 2 . . . 2 . 2 . . . . Power . | . . . . . . . . . . . . . . Propulsion 1 | . . . . . . . 1 . . . . . . Utility 4 | . . . 2 . . . . . 2 . . . . Weapon 1 | . . . . . . . 1 . . . . . . Parts Attached 267 | 7 11 10 35 7 27 2 23 51 53 3 8 8 22 Power 18 | 1 1 . 2 1 2 . 3 4 4 . . . . Engine 13 | 1 1 . 2 . 2 . 3 1 3 . . . . Core 3 | . . . . 1 . . . 2 . . . . . Reactor 2 | . . . . . . . . 1 1 . . . . Propulsion 62 | 2 2 1 10 . 6 . 8 13 15 1 1 . 3 Treads 52 | 1 2 1 10 . 5 . 8 13 11 . . . 1 Leg 9 | . . . . . 1 . . . 4 1 1 . 2 Wheel 1 | 1 . . . . . . . . . . . . . Hover . | . . . . . . . . . . . . . . Flight . | . . . . . . . . . . . . . . Utility 59 | 2 3 1 9 . 10 . 2 9 10 2 2 2 7 Device 22 | 1 . . 1 . 4 . . 6 4 1 1 2 2 Storage 13 | 1 3 1 3 . 2 . . 2 1 . . . . Processor 4 | . . . . . . . . 1 1 1 . . 1 Hackware 1 | . . . . . . . . . 1 . . . . Protection 19 | . . . 5 . 4 . 2 . 3 . 1 . 4 Artifact . | . . . . . . . . . . . . . . Weapon 128 | 2 5 8 14 6 9 2 10 25 24 . 5 6 12 Energy Gun 19 | . 2 3 2 . . . . 4 7 . . . 1 Energy Cannon 17 | . . . 2 . . . 2 3 5 . 2 1 2 Ballistic Gun 62 | 2 2 2 7 3 7 1 5 12 7 . 2 5 7 Ballistic Cannon . | . . . . . . . . . . . . . . Launcher 23 | . . 1 3 3 2 1 2 3 5 . 1 . 2 Special Weapon 3 | . 1 2 . . . . . . . . . . . Impact Weapon . | . . . . . . . . . . . . . . Slashing Weapon 4 | . . . . . . . 1 3 . . . . . Piercing Weapon . | . . . . . . . . . . . . . . Special Melee Weapon . | . . . . . . . . . . . . . . Unidentified Prototypes 18 | . . . 2 . 5 . 1 6 3 . . . 1 Parts Lost 70 | . 4 4 2 . 8 . 9 3 26 . . . 14 Power 7 | . 1 . . . 2 . 1 1 2 . . . . Propulsion 20 | . . 1 . . 2 . 4 1 7 . . . 5 Utility 14 | . 1 . 1 . 1 . 1 1 6 . . . 3 Weapon 29 | . 2 3 1 . 3 . 3 . 11 . . . 6 Highest Loss Streak 13 | . 4 3 1 . 7 . 7 2 8 . . . 13 Average Slot Usage (%) 97 | . 98 99 99 99 96 100 95 99 87 100 100 98 99 Engine 7 | . 14 14 11 8 2 11 8 2 2 7 7 7 7 Core 1 | . . . . 2 5 . . 6 3 . . . . Treads 15 | . 14 27 21 22 21 22 25 26 14 . . . . Leg 8 | . . . . . . . . . 7 23 23 23 22 Device 3 | . 6 . 1 . 1 . . 5 5 7 6 6 4 Storage 24 | . 21 28 22 22 30 33 27 27 23 23 23 23 23 Processor 5 | . . . . . . . . 2 1 15 15 15 15 Protection 5 | . . . 20 22 11 11 7 . 4 . . . 2 Energy Gun 3 | . 6 20 3 . . . . 3 1 . . . . Energy Cannon 2 | . . . 1 . . . 3 3 2 7 7 5 . Ballistic Gun 16 | . 20 6 16 21 21 21 14 18 14 15 15 14 20 Naked Turns . | . . . . . . . . . . . . . . Heaviest Build 151 | 14 72 74 84 82 114 107 115 132 151 133 130 124 125 Greatest Support 71 | 16 40 40 40 40 44 44 67 69 71 30 35 35 53 Greatest Overweight (x) 40 | . 4 3 2 2 2 2 4 2 40 4 4 3 3 Average Overweight (x) 2 | . 2 1 1 1 1 2 1 1 2 4 3 3 2 Largest Inventory Capacity 28 | 6 20 20 20 20 28 28 28 28 28 28 28 28 28 Average Capacity 25 | 5 14 20 20 20 26 28 28 28 28 28 28 28 28 Most Carried 28 | 6 20 20 20 20 28 28 28 28 28 28 28 28 28 Average Carried 24 | 3 14 19 19 20 23 28 27 27 27 27 27 27 27 Final Capacity 28 | 6 20 20 20 20 28 28 28 28 28 28 28 28 28 Final Carried 28 | 6 20 20 20 20 28 28 28 28 28 28 28 28 20 Class Distribution -------------------- 55% | Hauler-Mutant 13% | Scavenger-Gunner 10% | Hauler-Gunner 5% | Hauler-Skirmisher 5% | Scavenger-Mutant 3% | Scavenger-Tank Dominant Class ---------------- Hauler-Mutant | -10/Materials Hauler-Mutant | -10/Mines Hauler-Mutant | -9/Materials Hauler-Mutant | -9/Mines Hauler-Mutant | -9/Exiles Hauler-Mutant | -8/Mines Hauler-Mutant | -8/Materials Hauler-Gunner | -8/Storage Hauler-Mutant | -7/Factory Hauler-Mutant | -7/Lower Caves Hauler-Mutant | -7/Lower Caves Scavenger-Gunner | -7/Zion Scavenger-Gunner | -7/Deep Caves Resources | -11 -10 -10 -9 -9 -9 -8 -8 -8 -7 -7 -7 -7 -7 ----------- Run | Scr Mat Min Mat Min Exi Min Mat Sto Fac Low Low Zio Dee Matter Collected 7219 | 306 285 154 918 134 811 153 903 1272 1478 171 254 67 313 Remotely 52 | . . . 52 . . . . . . . . . . Salvage Created 9430 | 114 733 197 1136 119 471 199 1051 2115 2891 . 167 . 237 Parts 540 | 7 47 10 72 19 78 9 47 110 116 . 12 . 13 Haulers Intercepted 10 | . 2 . 1 . . . 2 5 . . . . . Recyclers Shooed 14 | . 2 1 2 . . . 6 2 1 . . . . Parts Field Recycled 47 | . . . . . 47 . . . . . . . . Retrieved Matter 262 | . . . . . 262 . . . . . . . . Parts Self-Destructed 16 | . . . . . . . . . . 2 8 6 . Prevented . | . . . . . . . . . . . . . . Kills | -11 -10 -10 -9 -9 -9 -8 -8 -8 -7 -7 -7 -7 -7 ------- Run | Scr Mat Min Mat Min Exi Min Mat Sto Fac Low Low Zio Dee Combat Hostiles Destroyed 181 | . 12 7 25 13 6 6 20 32 50 . 6 . 4 Melee 6 | . . . . . 1 . 3 1 1 . . . . Guns 85 | . 12 4 15 2 1 3 7 21 18 . 1 . 1 Cannons 16 | . . . 3 . . . 1 5 6 . 1 . . AOE 67 | . . 3 7 11 4 3 9 2 22 . 4 . 2 Classes Destroyed 20 | 2 5 1 4 . 2 . 2 1 2 . . . 1 Worker 12 | . 2 . . . . . 5 . 5 . . . . Builder 8 | . 1 . . . . . 1 3 3 . . . . Tunneler 4 | 2 . . . . . . . . 2 . . . . Hauler 10 | . 2 . 1 . . . 2 5 . . . . . Recycler 14 | 1 2 1 3 . . . 2 1 4 . . . . Mechanic 2 | . . . 1 . . . . 1 . . . . . Operator 1 | . . . . . . . . 1 . . . . . Turret 1 | . . . . . 1 . . . . . . . . Watcher 8 | . . . 2 . . . 3 2 1 . . . . Swarmer 38 | . 3 3 10 11 . 3 3 . 1 . 4 . . Grunt 82 | . 9 2 7 2 . 3 11 16 32 . . . . Brawler 7 | . . . . . . . 1 1 5 . . . . Duelist 3 | . . . 1 . . . . 1 1 . . . . Protector 2 | . . . . . . . . . 2 . . . . Sentry 24 | . . . 7 . . . 3 12 2 . . . . Hunter 6 | . . . . . . . 2 2 2 . . . . Programmer 5 | . . . . . . . . . 5 . . . . Enhanced Grunt 1 | . . . . . . . . . . . . . 1 Zionite 8 | . . . . . 8 . . . . . . . . Z-Light 4 | . . . . . . . . . . . . . 4 Assembled 7 | . . 2 . . 5 . . . . . . . . Thug 2 | . . . . . . . . . . . 2 . . Best Kill Streak 13 | 3 6 3 4 4 6 3 8 13 12 . 4 . 3 Combat Bots Only 9 | . 2 3 4 4 4 3 6 8 9 . 4 . 3 Max Kills in Single Turn 6 | 1 1 2 4 2 2 3 4 3 6 . 4 . 3 Gunslinging . | . . . . . . . . . . . . . . Exploded 4 | . . 2 4 2 2 3 2 2 4 . 4 . 2 Melee 1 | . . . . . 1 . 1 1 1 . . . . Uniques/NPCs Destroyed 5 | . . . . . 4 . . . . . . . 1 8R-AWN (-9/Exiles) EX-DEC (-9/Exiles) EX-BIN (-9/Exiles) EX-HEX (-9/Exiles) Z-Imprinter (-7/Deep Caves) Combat | -11 -10 -10 -9 -9 -9 -8 -8 -8 -7 -7 -7 -7 -7 -------- Run | Scr Mat Min Mat Min Exi Min Mat Sto Fac Low Low Zio Dee Damage Taken 13507 | . 597 325 1150 298 1118 364 1441 1725 4516 . 245 . 1728 Core 1407 | . 42 . 125 8 173 46 160 151 428 . 22 . 252 Absorbed by Shields 25 | . . . . . . . . . 25 . . . . Core Remaining (%) 59 | 100 . 83 . . . 12 . 43 . . . . . Volleys Fired 622 | 6 62 43 89 13 60 17 71 87 132 1 7 3 31 Largest 3 | 2 2 2 2 2 2 2 3 3 3 1 3 3 3 Hottest 161 | 40 100 100 100 50 60 46 83 151 150 35 91 161 124 Shots Fired 1345 | 12 102 64 173 16 113 33 147 250 323 1 24 7 80 Gun 1134 | 12 101 43 155 6 108 32 110 213 266 . 17 4 67 Cannon 117 | . . . 13 . . . 21 30 36 1 6 3 7 Launcher 74 | . . 2 5 10 5 1 16 7 21 . 1 . 6 Special 20 | . 1 19 . . . . . . . . . . . Kinetic 1015 | 12 84 37 131 6 108 32 110 174 234 . 17 4 66 Thermal 180 | . 18 25 37 . . . 21 30 36 1 6 3 3 Explosive 51 | . . 2 5 10 5 1 16 2 3 . 1 . 6 Electromagnetic 99 | . . . . . . . . 44 50 . . . 5 Robot Hit Streak 22 | 3 13 10 13 9 10 10 19 22 12 . 5 . 14 Robot Miss Streak 8 | 1 4 2 4 1 5 2 4 3 4 . 2 . 8 Penetration Max 1 | . . . . . 1 . . . 1 . . . 1 Secondary Targets 11 | . 1 . 1 . . 2 1 4 2 . . . . Max Gunslinging Chain 1 | . 1 . 1 . . 1 1 1 1 . . . . Shots Hit Robots 902 | 8 60 31 117 11 64 28 112 193 207 . 13 . 58 Core Hits 476 | 4 35 15 47 14 48 11 62 77 122 . 10 . 31 Critical Hits 44 | . . . 2 . 18 . 1 7 11 . . . 5 Critical Kills 11 | . . . . . 4 . . 4 1 . . . 2 Critical Parts Destroyed 26 | . . . 2 . 9 . 1 3 9 . . . 2 Melee Attacks 36 | . . . . . . . 28 8 . . . . . Impact . | . . . . . . . . . . . . . . Slashing 36 | . . . . . . . 28 8 . . . . . Piercing . | . . . . . . . . . . . . . . Sneak Attacks 5 | . . . . . . . 2 3 . . . . . Combat Hostiles . | . . . . . . . . . . . . . . Follow-up Attacks . | . . . . . . . . . . . . . . Damage Inflicted 25093 | 95 956 399 2335 943 1353 567 3507 4374 8386 . 546 . 1632 Guns 11295 | 95 738 231 1630 101 897 419 910 2555 2834 . 154 . 731 Cannons 1780 | . . . 139 . . . 208 486 675 . 138 . 134 Explosions 10422 | . 215 159 536 842 249 138 1564 936 4762 . 254 . 767 Melee 1141 | . . . . . . . 819 322 . . . . . Ramming 455 | . 3 9 30 . 207 10 6 75 115 . . . . Kinetic 10040 | 95 563 164 1405 101 897 419 910 2077 2543 . 154 . 712 Thermal 4216 | . 175 67 364 . . . 208 707 2476 . 138 . 81 Explosive 6470 | . 215 159 536 842 249 138 1564 307 1439 . 254 . 767 Electromagnetic 2771 | . . . . . . . . 886 1813 . . . 72 Impact . | . . . . . . . . . . . . . . Slashing 1141 | . . . . . . . 819 322 . . . . . Piercing . | . . . . . . . . . . . . . . Highest Corruption 6 | . 1 1 . . . . 5 5 6 6 6 6 . Average Corruption 3 | . 1 1 . . . . 4 5 4 6 6 6 . Corruption Purged . | . . . . . . . . . . . . . . Effects 241 | . 8 10 . . . . 15 81 45 45 36 1 . Message Errors 66 | . 4 8 . . . . 5 18 8 15 7 1 . Matter Fused 36 | . . . . . . . 3 7 8 12 6 . . Heat Flow Errors 23 | . . . . . . . 2 9 4 6 2 . . Energy Discharges 27 | . . 1 . . . . 1 12 1 4 8 . . Parts Rejected 2 | . . . . . . . . 2 . . . . . Data Loss (minor) 38 | . 1 1 . . . . 4 12 11 4 5 . . Data Loss (major) 10 | . . . . . . . . 2 2 4 2 . . Misfires 10 | . . . . . . . . 5 . . 5 . . Targeting Errors 25 | . 3 . . . . . . 12 9 . 1 . . Weapon Failures 4 | . . . . . . . . 2 2 . . . . Overload Shots 3 | . . . . . . . . . . . . 3 . Overflow Damage 1013 | . 99 . 22 77 9 . 161 140 490 . . . 15 Projectiles 27 | . . . . . . . 3 17 7 . . . . Explosions 819 | . 99 . 22 77 9 . 80 34 483 . . . 15 Melee 167 | . . . . . . . 78 89 . . . . . Knockbacks 5 | . . . . . 2 . 1 1 1 . . . . Impact 5 | . . . . . 2 . 1 1 1 . . . . Kinetic . | . . . . . . . . . . . . . . Secondary . | . . . . . . . . . . . . . . Self-Inflicted Damage 1324 | . 1 . . 148 49 32 111 140 759 . . . 84 Shots 35 | . . . . 4 1 1 4 4 19 . . . 2 Rammed 77 | . 1 1 4 . 43 1 1 7 19 . . . . Targets Rammed 81 | . 1 1 4 . 44 1 1 8 21 . . . . Kicked 1 | . . . . . . . . . 1 . . . . Crushed 3 | . . . . . 1 . . 1 1 . . . . Highest Temperature 511 | . 152 88 442 12 38 27 219 511 314 272 184 78 354 Average Temperature 69 | . 49 31 67 9 18 12 44 91 74 112 54 41 140 Received Heat Transfer 3428 | . 234 72 285 6 20 153 468 630 1230 . 81 . 249 Effects 8 | . . . 2 . . . . 4 1 . . . 1 Shutdowns 1 | . . . 1 . . . . . . . . . . Interference 4 | . . . . . . . . 3 . . . . 1 Matter Decay 2 | . . . 1 . . . . 1 . . . . . Damage (minor) 1 | . . . . . . . . . 1 . . . . Siege Activations . | . . . . . . . . . . . . . . Robots Corrupted 7 | . . . . . . . . 4 3 . . . . Combat Hostiles 6 | . . . . . . . . 3 3 . . . . Parts Fried 13 | . . . . . . . . 6 7 . . . . Impact Corruptions 2 | . . . . . 1 . . 1 . . . . . Robots Melted . | . . . . . . . . . . . . . . Combat Hostiles . | . . . . . . . . . . . . . . Parts Melted 9 | . . . 2 . . . . 2 3 . 1 . 1 Heat Transferred 5851 | . 518 150 796 . . . 444 1088 2505 . 200 . 150 Parts Sabotaged . | . . . . . . . . . . . . . . Parts Stolen . | . . . . . . . . . . . . . . Parts Stripped . | . . . . . . . . . . . . . . Power Chain Reactions 9 | . . . . . . . . 3 6 . . . . Missiles Intercepted . | . . . . . . . . . . . . . . Alert | -11 -10 -10 -9 -9 -9 -8 -8 -8 -7 -7 -7 -7 -7 ------- Run | Scr Mat Min Mat Min Exi Min Mat Sto Fac Low Low Zio Dee Peak Influence 1518 | 15 270 101 293 213 . 167 419 512 1518 . . . . Initial 232 | . 9 60 . 18 . . 65 175 232 . . . . Average 288 | 6 125 17 120 91 . 123 305 236 998 . . . . Maximum Alert Level 4 | . 1 . 1 1 . . 2 2 4 . . . . Low Security (%) 54 | 100 75 100 83 67 . 100 16 32 3 . . . . Level 1 25 | . 24 . 16 32 . . 61 51 16 . . . . Level 2 6 | . . . . . . . 21 16 3 . . . . Level 3 3 | . . . . . . . . . 22 . . . . Level 4 9 | . . . . . . . . . 53 . . . . Level 5 . | . . . . . . . . . . . . . . High Security . | . . . . . . . . . . . . . . Max Security . | . . . . . . . . . . . . . . Squads Dispatched 31 | . 5 . 2 . . . 2 7 15 . . . . Investigation 8 | . 1 . 1 . . . 1 2 3 . . . . Extermination 4 | . . . . . . . . . 4 . . . . Reinforcement 12 | . 4 . 1 . . . 1 2 4 . . . . Assault 6 | . . . . . . . . 2 4 . . . . Garrison 1 | . . . . . . . . 1 . . . . . Intercept . | . . . . . . . . . . . . . . Construction Impeded 5 | . . . 1 . . . 1 . 3 . . . . Haulers Reinforced . | . . . . . . . . . . . . . . Stealth | -11 -10 -10 -9 -9 -9 -8 -8 -8 -7 -7 -7 -7 -7 --------- Run | Scr Mat Min Mat Min Exi Min Mat Sto Fac Low Low Zio Dee Distress Signals 10 | . 1 . 2 . . . 3 2 2 . . . . Communications Jammed . | . . . . . . . . . . . . . . Distress Signals . | . . . . . . . . . . . . . . Times Spotted 293 | . 30 7 35 13 23 6 36 52 74 . 4 . 13 Peak Tracking Total 9 | . 4 3 5 4 9 3 8 5 9 . 4 . 6 Tactical Retreats 35 | . 4 . 3 . 8 . 6 5 9 . . . . Traps | -11 -10 -10 -9 -9 -9 -8 -8 -8 -7 -7 -7 -7 -7 ------- Run | Scr Mat Min Mat Min Exi Min Mat Sto Fac Low Low Zio Dee Traps Triggered 13 | . 1 . . . . . 4 4 4 . . . . Indirectly 1 | . . . . . . . . 1 . . . . . Trap Hack Attempts . | . . . . . . . . . . . . . . Triggered . | . . . . . . . . . . . . . . Disarmed . | . . . . . . . . . . . . . . Reprogrammed . | . . . . . . . . . . . . . . Reused . | . . . . . . . . . . . . . . Traps Extracted . | . . . . . . . . . . . . . . Installed . | . . . . . . . . . . . . . . Triggered . | . . . . . . . . . . . . . . Exploded 3 | . . . . . 3 . . . . . . . . Machines | -11 -10 -10 -9 -9 -9 -8 -8 -8 -7 -7 -7 -7 -7 ---------- Run | Scr Mat Min Mat Min Exi Min Mat Sto Fac Low Low Zio Dee Machines Disabled 53 | . 2 1 5 3 16 . 3 7 15 . . . 1 Max in Single Turn 4 | . 2 1 1 1 2 . 1 1 4 . . . 1 Garrison Access 2 | . . . . . . . 1 1 . . . . . Machines Sabotaged . | . . . . . . . . . . . . . . Garrisons Compromised . | . . . . . . . . . . . . . . Overloaded Fab Kills . | . . . . . . . . . . . . . . Fab Network Shutdowns 1 | . . . . . . . . . 1 . . . . Hacking | -11 -10 -10 -9 -9 -9 -8 -8 -8 -7 -7 -7 -7 -7 --------- Run | Scr Mat Min Mat Min Exi Min Mat Sto Fac Low Low Zio Dee Machines Accessed 51 | . 7 . 14 . 2 . 8 14 4 1 1 . . Terminals 36 | . 6 . 11 . . . 5 11 2 1 . . . Fabricators 1 | . . . . . . . . . 1 . . . . Repair Stations 4 | . . . 2 . . . . 2 . . . . . Recycling Units 2 | . 1 . 1 . . . . . . . . . . Scanalyzers 3 | . . . . . . . 2 . 1 . . . . Garrison Access 2 | . . . . . . . 1 1 . . . . . Total Hacks 148 | . 24 . 46 . 2 . 27 35 12 1 1 . . Successful 85 | . 12 . 30 . 2 . 14 21 4 1 1 . . Failed 63 | . 12 . 16 . . . 13 14 8 . . . . Catastrophic 6 | . 1 . 2 . . . 2 . 1 . . . . Database Lockouts . | . . . . . . . . . . . . . . Manual 60 | . 12 . 26 . 1 . 4 12 4 . . 1 . Terminals 119 | . 23 . 41 . . . 16 29 9 1 . . . Fabricators 2 | . . . . . . . . . 2 . . . . Repair Stations 9 | . . . 4 . . . . 5 . . . . . Recycling Units 2 | . 1 . 1 . . . . . . . . . . Scanalyzers 11 | . . . . . . . 10 . 1 . . . . Garrison Access 2 | . . . . . . . 1 1 . . . . . Terminal Hacks 45 | . 6 . 13 . 2 . 6 14 2 1 1 . . Record 2 | . . . . . 1 . . . . 1 . . . Part Schematic 2 | . 1 . 1 . . . . . . . . . . Robot Analysis 2 | . 2 . . . . . . . . . . . . Prototype ID Bank 6 | . . . 5 . . . 1 . . . . . . Open Door 7 | . . . . . . . . 6 . . 1 . . Branch Access Points 3 | . . . 1 . . . 1 . 1 . . . . Alert Level 2 | . . . 1 . . . . 1 . . . . . Unreport Threat 7 | . . . 3 . . . . 3 1 . . . . Locate Traps 4 | . 1 . . . . . 1 2 . . . . . Hauler Manifests 4 | . 1 . 1 . . . 1 1 . . . . . Zone Layout 5 | . 1 . 1 . . . 2 1 . . . . . EX-Prototype ID Bank 1 | . . . . . 1 . . . . . . . . Fabricator Hacks 2 | . . . . . . . . . 2 . . . . Load Schematic 1 | . . . . . . . . . 1 . . . . Build 1 | . . . . . . . . . 1 . . . . Repair Station Hacks 6 | . . . 4 . . . . 2 . . . . . Scan Component 4 | . . . 2 . . . . 2 . . . . . Repair 2 | . . . 2 . . . . . . . . . . Recycling Unit Hacks . | . . . . . . . . . . . . . . Scanalyzer 6 | . . . . . . . 6 . . . . . . Insert Component 2 | . . . . . . . 2 . . . . . . Analyze 4 | . . . . . . . 4 . . . . . . Garrison Access Hacks 2 | . . . . . . . 1 1 . . . . . Seal Access 2 | . . . . . . . 1 1 . . . . . Unauthorized Hacks 24 | . 6 . 13 . . . 1 4 . . . . . Terminals 22 | . 5 . 12 . . . 1 4 . . . . . Track 15 | . 3 . 8 . . . 1 3 . . . . . Assimilate 1 | . 1 . . . . . . . . . . . . Botnet 4 | . . . 3 . . . . 1 . . . . . Operators 2 | . 1 . 1 . . . . . . . . . . Fabricators . | . . . . . . . . . . . . . . Repair Stations . | . . . . . . . . . . . . . . Recycling Units 2 | . 1 . 1 . . . . . . . . . . Tunnel 2 | . 1 . 1 . . . . . . . . . . Scanalyzers . | . . . . . . . . . . . . . . Garrison Access . | . . . . . . . . . . . . . . Data Cores Recovered . | . . . . . . . . . . . . . . Used . | . . . . . . . . . . . . . . Hacking Detections 39 | . 6 . 12 . . . 7 10 4 . . . . Full Trace Events 3 | . . . . . . . 1 1 1 . . . . Feedback Events . | . . . . . . . . . . . . . . Feedback Blocked . | . . . . . . . . . . . . . . Robot Schematics Acquired . | . . . . . . . . . . . . . . Robots Built . | . . . . . . . . . . . . . . Matter . | . . . . . . . . . . . . . . Time . | . . . . . . . . . . . . . . Total Robot Build Rating . | . . . . . . . . . . . . . . Part Schematics Acquired 3 | . 1 . 1 . . . 1 . . . . . . Parts Built 2 | . . . . . . . . . 2 . . . . Matter 256 | . . . . . . . . . 256 . . . . Time 64 | . . . . . . . . . 64 . . . . Total Part Build Rating 16 | . . . . . . . . . 16 . . . . Parts Repaired 2 | . . . 2 . . . . . . . . . . Time 52 | . . . 52 . . . . . . . . . . Parts Recycled . | . . . . . . . . . . . . . . Recycled Matter . | . . . . . . . . . . . . . . Retrieved Matter . | . . . . . . . . . . . . . . Retrieved Components . | . . . . . . . . . . . . . . Parts Scanalyzed 1 | . . . . . . . 1 . . . . . . Part Schematics Acquired 1 | . . . . . . . 1 . . . . . . Parts Damaged . | . . . . . . . . . . . . . . Bothacking | -11 -10 -10 -9 -9 -9 -8 -8 -8 -7 -7 -7 -7 -7 ------------ Run | Scr Mat Min Mat Min Exi Min Mat Sto Fac Low Low Zio Dee Used RIF Installer . | . . . . . . . . . . . . . . Robots Hacked . | . . . . . . . . . . . . . . Non-combat . | . . . . . . . . . . . . . . Combat . | . . . . . . . . . . . . . . Robot Hacks Applied . | . . . . . . . . . . . . . . Relay Couplers Released . | . . . . . . . . . . . . . . Robots Rewired . | . . . . . . . . . . . . . . Allies Hacked . | . . . . . . . . . . . . . . Hacks Repelled . | . . . . . . . . . . . . . . Allies | -11 -10 -10 -9 -9 -9 -8 -8 -8 -7 -7 -7 -7 -7 -------- Run | Scr Mat Min Mat Min Exi Min Mat Sto Fac Low Low Zio Dee Total Allies 11 | . . 3 . . . . . 2 . . . 6 . Largest Group 6 | . . 3 2 . . . . 2 . . . 6 6 Highest-Rated Group 281 | . . 40 24 . . . . 62 . . . 281 281 Highest-Rated Ally 94 | . . 16 16 . . . . 31 . . . 94 94 Total Orders . | . . . . . . . . . . . . . . Ally Attacks 70 | . . 3 6 . . . . 11 . . . . 50 Total Damage 1461 | . . 14 91 . . . . 186 . . . . 1170 Kills 10 | . . . . . . . . 1 . . . . 9 Allies Corrupted . | . . . . . . . . . . . . . . Allies Melted . | . . . . . . . . . . . . . . Intel | -11 -10 -10 -9 -9 -9 -8 -8 -8 -7 -7 -7 -7 -7 ------- Run | Scr Mat Min Mat Min Exi Min Mat Sto Fac Low Low Zio Dee Robot Analysis Total 2 | . 2 . . . . . . . . . . . . Derelict Logs Recovered 6 | . . 3 . 1 . . . . . 1 . 1 . Drone Launches . | . . . . . . . . . . . . . . Drone Recoveries . | . . . . . . . . . . . . . . Exploration | -11 -10 -10 -9 -9 -9 -8 -8 -8 -7 -7 -7 -7 -7 ------------- Run | Scr Mat Min Mat Min Exi Min Mat Sto Fac Low Low Zio Dee Turns Passed 25725 | 112 1261 2961 2279 997 2826 111 1477 2798 2478 1875 1432 3708 1410 Spaces Moved 10577 | 80 686 902 926 493 1282 29 621 1000 912 778 580 1676 612 Core 5 | 4 . . . . . . . . 1 . . . . Treads 5879 | . 6 902 926 493 1282 29 621 1000 620 . . . . Legs 3937 | . . . . . . . . . 291 778 580 1676 612 Wheels 756 | 76 680 . . . . . . . . . . . . Hover . | . . . . . . . . . . . . . . Flight . | . . . . . . . . . . . . . . Fastest Speed 50 | 50 100 180 180 180 172 185 165 175 175 240 210 210 180 Average Speed 195 | 97 124 180 196 194 190 185 174 185 210 240 238 210 193 Slowest Speed 2050 | 100 180 220 200 200 200 185 225 200 2050 240 240 210 210 Overloaded Moves . | . . . . . . . . . . . . . . Propulsion Burnouts . | . . . . . . . . . . . . . . Robots Hopped . | . . . . . . . . . . . . . . Cave-ins Triggered . | . . . . . . . . . . . . . . Exploration Rate (%) 65 | 5 87 99 68 89 91 12 50 94 26 78 66 87 64 Regions Visited 13 Branch Regions 9 Pre-discovered Areas 7 | . 1 1 1 . 1 . . 1 . . . 2 . Known Exits Taken 7 | . . . 1 . . . 1 1 1 1 1 1 . Unknown Exits Taken 6 | 1 1 1 . 1 1 1 . . . . . . . Scrap Searched 12 | . . 1 . 1 . . . . . 3 3 4 . Spaces Dug 53 | . . 9 11 11 9 . . 4 5 1 . 3 . Terrain Destroyed 660 | . 7 16 60 83 56 13 104 50 204 1 15 3 48 Melee 4 | . . . . . . . . 4 . . . . . Projectile 40 | . . . . . 17 . . 4 14 1 . 3 1 AOE 616 | . 7 16 60 83 39 13 104 42 190 . 15 . 47 Terrain Rammed . | . . . . . . . . . . . . . . Walls Destroyed . | . . . . . . . . . . . . . . Machines Disabled . | . . . . . . . . . . . . . . Actions | -11 -10 -10 -9 -9 -9 -8 -8 -8 -7 -7 -7 -7 -7 --------- Run | Scr Mat Min Mat Min Exi Min Mat Sto Fac Low Low Zio Dee Total 14460 | 99 1002 2140 1245 514 1517 55 858 1773 1207 785 617 1867 781 Wait 2511 | . 202 1171 122 1 72 7 90 557 49 . 10 144 86 Move 10564 | 79 685 901 925 492 1281 28 620 999 911 777 579 1675 612 Hop . | . . . . . . . . . . . . . . Pick Up 185 | 7 28 9 29 . 20 . 15 19 20 2 5 16 15 Fast Attach 73 | 6 3 . 6 1 5 . 9 16 18 . 3 5 1 Attach 62 | 1 4 4 4 . 8 . 7 6 19 . . . 9 Detach 11 | . . . . . 3 . . 2 6 . . . . Swap 132 | . 4 6 25 6 14 2 7 29 16 3 5 3 12 Drop 179 | . 13 5 41 1 10 . 10 38 15 2 8 21 15 Fire 622 | 6 62 43 89 13 60 17 71 87 132 1 7 3 31 Melee 36 | . . . . . . . 28 8 . . . . . Ram 1 | . 1 . . . . . . . . . . . . Kick 1 | . . . . . . . . . 1 . . . . Crush 79 | . . 1 4 . 44 1 1 8 20 . . . . Escape Stasis 4 | . . . . . . . . 4 . . . . . Rewire . | . . . . . . . . . . . . . . Trap . | . . . . . . . . . . . . . . Miscellaneous . | . . . . . . . . . . . . . . Route ------- -11/Scrapyard -10/Materials (discovered 5 exits: *Mat x3 / [*Min x2]) -10/Mines (discovered 2 exits: *Mat x2) -9/Materials (discovered 4 exits: *Mat x2 / *Min x2) -9/Mines (discovered 2 exits: *Mat / *Exi) -9/Exiles (discovered 2 exits: [*Min x2]) -8/Mines -8/Materials (discovered 3 exits: Fac / *Sto x2) -8/Storage -7/Factory (discovered 3 exits: [*Fac] / *Low x2) -7/Lower Caves -7/Lower Caves -7/Zion (discovered 2 exits: *Dee / [*Pro]) -7/Deep Caves (discovered 1 exit: [*Pro]) History --------- Turn | Location | Event 17 | -11/Scrapyard | Discovered new exit (range 15) 113 | -11/Scrapyard | Entered Materials 172 | -10/Materials | Discovered new exit (range 8) 189 | -10/Materials | Discovered new exit (range 14) 312 | -10/Materials | Build established: Mutant 516 | -10/Materials | Discovered new exit (range 4) 689 | -10/Materials | Discovered new exit (range 3) 766 | -10/Materials | Lost 4 parts (1p1u2w) 865 | -10/Materials | Discovered new exit (range 6) 1009 | -10/Materials | Build established: Hauler-Mutant 1374 | -10/Materials | Entered Mines 1381 | -10/Mines | Received a Rocket Launcher from a helpful Derelict 1523 | -10/Mines | Learned location of Zion (-7) 1866 | -10/Mines | Assisted by bots powering up and referring to "LRC-V3" 1900 | -10/Mines | Discovered new exit (range 12) 1912 | -10/Mines | Learned Materials trap positions 2297 | -10/Mines | Excavation squad dispatched 2297 | -10/Mines | A large section of the Mines collapsed 2456 | -10/Mines | Discovered new exit (range 9) 2624 | -10/Mines | Lost 3 parts (1n2w) 4335 | -10/Mines | Entered Materials 4335 | -9/Materials | Accompanied by 2 allies 4335 | -9/Materials | Evolved 2 slots: Utility x2 4336 | -9/Materials | Loaded intel: 24 trap records 4406 | -9/Materials | Identified exit to Mines 4506 | -9/Materials | Repaired Lgt. Treads 5415 | -9/Materials | Discovered new exit (range 9) 6192 | -9/Materials | Discovered new exit (range 13) 6497 | -9/Materials | Repaired Lgt. Armor Plating 6614 | -9/Materials | Entered Mines 7100 | -9/Mines | Deemed a non-threat by the Exiles lab entrance 7388 | -9/Mines | Discovered new exit (range 8) 7604 | -9/Mines | Discovered new exit (range 5) 7611 | -9/Mines | Entered Exiles 7655 | -9/Exiles | Met 8R-AWN 7685 | -9/Exiles | Met EX-HEX 7772 | -9/Exiles | Met EX-DEC 7939 | -9/Exiles | Met EX-BIN 8144 | -9/Exiles | Discovered new exit (range 15) 8372 | -9/Exiles | Aligned with FarCom system 8374 | -9/Exiles | Given EX-Vault access code 8422 | -9/Exiles | Opened EX-Vault 8480 | -9/Exiles | Warned to stay clear of 0b10 Research branches 8915 | -9/Exiles | Attacked by the Exiles 9043 | -9/Exiles | Core integrity fell below 50% 9097 | -9/Exiles | Lost 7 parts (1p2n1u3w) 9117 | -9/Exiles | Destroyed 8R-AWN 9120 | -9/Exiles | Found Prototype Ballistic Gun 9120 | -9/Exiles | Identified 8R-AWN's Boregun 9123 | -9/Exiles | Found 8R-AWN's Boregun 9144 | -9/Exiles | Found Prototype Device 9144 | -9/Exiles | Identified AS-neutralizer No. 17b 9152 | -9/Exiles | Found Prototype Processor 9155 | -9/Exiles | Found Prototype Protection 9474 | -9/Exiles | Discovered new exit (range 10) 9683 | -9/Exiles | Destroyed EX-DEC 9725 | -9/Exiles | Destroyed EX-BIN 9750 | -9/Exiles | Destroyed EX-HEX 10437 | -9/Exiles | Entered Mines 10477 | -8/Mines | Core integrity fell below 20% 10516 | -8/Mines | Discovered new exit (range 8) 10548 | -8/Mines | Entered Materials 10548 | -8/Materials | Evolved 2 slots: Propulsion x1, Weapon x1 10549 | -8/Materials | Identified exit to Factory 10549 | -8/Materials | Identified exit to Storage 10842 | -8/Materials | Build established: Hauler-Tank 11075 | -8/Materials | Lost 7 parts (1p3n1u2w) 11303 | -8/Materials | Build established: Hauler-Mutant 12025 | -8/Materials | Entered Storage 12461 | -8/Storage | Build established: Hauler-Gunner 13519 | -8/Storage | Learned location of Armory (-4) 13750 | -8/Storage | Met a pair of Derelict thieves 13824 | -8/Storage | Identified Exp. Targeting Computer 13891 | -8/Storage | Destroyed 8 combat bots 14194 | -8/Storage | Core integrity fell below 50% 14205 | -8/Storage | Garrison activated, responded to threat 14352 | -8/Storage | Discovered exit to Factory (range 16) 14823 | -8/Storage | Entered Factory 14823 | -7/Factory | Evolved 2 slots: Utility x2 14823 | -7/Factory | Identified 8R-AWN's Armor/EX 15052 | -7/Factory | Fabricated Cmb. Antigrav System (x2) 15089 | -7/Factory | Discovered new exit (range 11) 15137 | -7/Factory | Build established: Scavenger-Tank 15317 | -7/Factory | Local fabrication network quarantined 15443 | -7/Factory | Identified exit to Lower Caves 15623 | -7/Factory | First assault squad dispatched 15823 | -7/Factory | Destroyed 9 combat bots 15834 | -7/Factory | Lost 8 parts (1n3u4w) 15980 | -7/Factory | Lost 3 parts (1n1u1w) 16109 | -7/Factory | Lost 8 parts (1p2n1u4w) 16112 | -7/Factory | Destroyed 8 combat bots 16234 | -7/Factory | Build established: Hauler-Mutant 16374 | -7/Factory | Lost 3 parts (2n1w) 16592 | -7/Factory | Core integrity fell below 50% 16909 | -7/Factory | Build established: Hauler-Gunner 17301 | -7/Factory | Entered Lower Caves 17316 | -7/Lower Caves | Learned Factory terminal intel 17603 | -7/Lower Caves | Build established: Hauler-Skirmisher 18534 | -7/Lower Caves | Build established: Hauler-Mutant 18876 | -7/Lower Caves | Discovered new exit (range 8) 19173 | -7/Lower Caves | Identified exit to Lower Caves 19176 | -7/Lower Caves | Entered another Lower Caves area 19507 | -7/Lower Caves | Encountered a Warlord checkpoint 20564 | -7/Lower Caves | Discovered new exit (range 9) 20581 | -7/Lower Caves | Identified exit to Zion 20596 | -7/Lower Caves | Build established: Hauler-Skirmisher 20608 | -7/Lower Caves | Entered Zion 20644 | -7/Zion | Given the Hacking Drone Bay 20683 | -7/Zion | Given A8's code to call for help 20723 | -7/Zion | System corruption cleaned by Quarantine Array 20917 | -7/Zion | Discovered new exit (range 13) 21012 | -7/Zion | Found Prototype Device 21026 | -7/Zion | Identified Bomb Factory No. 2 21133 | -7/Zion | Found Prototype Device 21144 | -7/Zion | Identified Hacking Drone Bay 21306 | -7/Zion | Build established: Scavenger-Gunner 21416 | -7/Zion | Learned Factory emergency access door positions 21810 | -7/Zion | Found Prototype Processor 21819 | -7/Zion | Identified Exp. Core Analyzer 21842 | -7/Zion | Found Prototype Processor 21852 | -7/Zion | Identified Exp. Terrain Scan Processor 21861 | -7/Zion | Found Prototype Processor 21870 | -7/Zion | Identified Exp. Melee Analysis Suite 21969 | -7/Zion | Learned Factory emergency access door positions 22068 | -7/Zion | Learned location of Warlord (-4) 22471 | -7/Zion | Gained Derelict followers 23121 | -7/Zion | Discovered new exit (range 5) 23123 | -7/Zion | Saw the warning signs outside the Deep Caves entrance 23414 | -7/Zion | Build established: Scavenger-Mutant 24223 | -7/Zion | Build established: Scavenger-Gunner 24263 | -7/Zion | Enhanced Grunt warped into view, answering call for help 24267 | -7/Zion | Enhanced Grunt warped into view, answering call for help 24306 | -7/Zion | Identified exit to Deep Caves 24316 | -7/Zion | Entered Deep Caves 24316 | -7/Deep Caves | Accompanied by 6 allies 24608 | -7/Deep Caves | Attacked by Z-Imprinter 24629 | -7/Deep Caves | Allies destroyed Z-Imprinter 24661 | -7/Deep Caves | Found Prototype Device 24673 | -7/Deep Caves | Identified Zio. Metafield Generator 24745 | -7/Deep Caves | Found Prototype Protection 24750 | -7/Deep Caves | Identified Zio. Weapon Casing 25129 | -7/Deep Caves | Found Prototype Protection 25468 | -7/Deep Caves | Discovered new exit (range 7) 25644 | -7/Deep Caves | Spotted as-33354 25674 | -7/Deep Caves | Core integrity fell below 20% 25726 | -7/Deep Caves | Destroyed by as-33354 with Assembled Focal Cannon Last Messages --------------- 25699_ HV Slug penetrates Wall. 25705_ HV Slug penetrates as-33354. 25705_ as-33354 suffers critical hit. 25705_ Destroyed GOLEM Unit. 25708_ HV Slug penetrates Wall. 25710_ Overheating: System interference. 25710_ Adv. Core Analyzer temporarily disabled. 25715_ Destroyed Prototype Device. 25715_ HV Slug penetrates Wall. 25717_ Flak Gun destroyed. 25717_ Hrd. Light Armor Plating destroyed. 25719_ HV Slug penetrates as-33354. 25721_ as-33354 misfires. 25722_ HV Slug penetrates as-33354. 25722_ as-33354 suffers critical hit. 25726_ HV Slug penetrates RO-DL1(l). 25726_ RO-DL1(l) suffers critical hit. 25726_ RO-DL1(l) destroyed. 25726_ 8R-AWN's Boregun destroyed. 25726_ Imp. Treads destroyed. Map ----- +----------------------------------------------------+ | ?????????????????????????????????????????## | | ?????????????????????????????????????????# | | ???????????????????????????????????# ???# | | ?????????????????????????????????## ???# | | ????????????????????????? ?????# ???# | | ?????????????????????? ?????# ???## | | ???????????????????? = ?????? ????## # | | ??????????????????= = #?????# #????## # | | ??????????????? / #?????# ##????# | | ?????????????/ / #????## #???## | | ??????????? / [% #???## #??## | | ??????????? ##?## #### | | ?????????? / / #?# ## | | ?????????? / #?? ## | | ????????? ! #????# #?## | | ????????? ! ! ####### ##?# | | ????????? ! * #?# | | ????????""" /% ## ##? | | ????????" = #### ## | | ?????????" ### #??## # | | ????????" #?# #??## | | ?????????" ##?# ##??# | | ????????" ;G# #??#######???# | | ????????" #### #; ## ##????????????# | | ????????""" ???????# ?# ####?????????????## ## | | ???????????????????#??#@#?????????????????###### | | ??????????????????????###??????????????????????? | | | | | | | | | | | | | | | | | | | | | | | | | | | | | | | | | | | | | | | | | | | | | | | +----------------------------------------------------+ Best States ------------- Heat Dissipation 75 Energy Generation 19 Energy Capacity 310 Matter Stores 300 Matter Capacity 300 Sight Range 16 Robot Scan Range 16 Terrain Scan Range 16 Terrain Scan Density 10 Armor Coverage 1000 Resistance: KI 10 Resistance: TH 10 Resistance: EX 90 Resistance: EM 20 Core Shielding 20 Evasion (%) 40 Targeting Accuracy 12 Core Analysis 10 Recoil Reduction 3 Matter Filtering 30 Salvage Targeting 1 Offensive Hacking 10 Item Schematics ----------------- Hcp. Storage Unit | -10/Materials | Hacked Armor Integrity Analyzer | -9/Materials | Hacked Cmb. Antigrav System | -8/Materials | Scanalyzed Robot Schematics ------------------ None Fabricated ------------ Cmb. Antigrav System | x2 | -7/Factory Alien Tech Used ----------------- None Achievements -------------- None Challenges ------------ None Game ------ Seed SwarmTiamatClaws Manual? 0 Play Time 02:38:41 Cumulative 265.5 hours Start 2020.12.16 @ 13:58:52 End 2020.12.16 @ 17:29:54 Sessions 8 Manual Loads 0 Difficulty Rogue Special Mode None Game No. 270 Rogue 270 Adventurer 0 Explorer 0 Win Type - Total 3 Types 3/0/0/0/0/0/0/0/0 Lore% 63 Gallery% 78 Achievement% 60 Wizard Run 0 Options --------- ASCII 0 Keyboard 0 Movement Numpad Keybinds 0 Fullscreen 2 Font 24/Terminus Map View 76x50 Tactical HUD 1 Map Filters NONE Filters NONE Steam 1 RUN: 9f950345-89f8-44b0-81a8-8b25c9194119